[Event "Titled Tuesday Blitz May 16 Early 2023"]
[White "Prohaszka, Peter"]
[Black "Gil Alba, Hector Luis"]
[WhiteFideId "726265"]
[BlackFideId "3504670"]
[WhiteElo "2626"]
[BlackElo "2331"]
[Result "1-0"]
[Round "01"]
[TimeControl "180+2"]
[Date "2023.05.16"]
[WhiteClock "0:00:53"]
[BlackClock "0:01:10"]

1. d4 {[%clk 0:02:58]}  Nf6 {[%clk 0:02:57]} 2. c3 {[%clk 0:02:58]}  e6 {[%clk 0:02:57]} 3. Nf3 {[%clk 0:02:58]}  d5 {[%clk 0:02:57]} 4. Bg5 {[%clk 0:02:57]}  Be7 {[%clk 0:02:57]} 5. Nbd2 {[%clk 0:02:57]}  O-O {[%clk 0:02:57]} 6. e3 {[%clk 0:02:51]}  c5 {[%clk 0:02:55]} 7. Bd3 {[%clk 0:02:51]}  Nc6 {[%clk 0:02:55]} 8. Ne5 {[%clk 0:02:49]}  Nd7 {[%clk 0:02:52]} 9. Bxe7 {[%clk 0:02:46]}  Qxe7 {[%clk 0:02:51]} 10. f4 {[%clk 0:02:40]}  f6 {[%clk 0:02:50]} 11. Bxh7+ {[%clk 0:02:19]}  Kxh7 {[%clk 0:02:50]} 12. Qh5+ {[%clk 0:02:20]}  Kg8 {[%clk 0:02:50]} 13. Ng6 {[%clk 0:02:21]}  Qe8 {[%clk 0:02:50]} 14. O-O {[%clk 0:02:17]}  Ne7 {[%clk 0:02:29]} 15. Qh8+ {[%clk 0:01:52]}  Kf7 {[%clk 0:02:28]} 16. Nxf8 {[%clk 0:01:50]}  Qxf8 {[%clk 0:02:26]} 17. Qh3 {[%clk 0:01:47]}  f5 {[%clk 0:02:22]} 18. Nf3 {[%clk 0:01:43]}  Nf6 {[%clk 0:02:17]} 19. Ne5+ {[%clk 0:01:37]}  Ke8 {[%clk 0:02:16]} 20. dxc5 {[%clk 0:01:36]}  Nc6 {[%clk 0:02:16]} 21. c4 {[%clk 0:01:30]}  dxc4 {[%clk 0:02:05]} 22. Nxc4 {[%clk 0:01:17]}  Qxc5 {[%clk 0:02:02]} 23. Rac1 {[%clk 0:01:17]}  Qe7 {[%clk 0:01:56]} 24. Rfd1 {[%clk 0:01:15]}  Nd5 {[%clk 0:01:49]} 25. b4 {[%clk 0:01:07]}  a6 {[%clk 0:01:46]} 26. a4 {[%clk 0:01:07]}  Ncxb4 {[%clk 0:01:39]} 27. Qh8+ {[%clk 0:01:06]}  Kd7 {[%clk 0:01:10]} 28. Nb6+ {[%clk 0:00:53]} 1-0


[Site "https://www.chess.com"]

[Event "Titled Tuesday Blitz May 16 Early 2023"]
[White "Gurevich, Dmitry"]
[Black "caropawn10"]
[WhiteFideId "2000407"]
[WhiteElo "2506"]
[BlackElo "2705"]
[Result "1-0"]
[Round "01"]
[TimeControl "180+2"]
[Date "2023.05.16"]
[WhiteClock "0:00:02"]
[BlackClock "0:00:43"]

1. d4 {[%clk 0:02:58]}  Nf6 {[%clk 0:02:59]} 2. c4 {[%clk 0:02:57]}  e6 {[%clk 0:02:58]} 3. Nc3 {[%clk 0:02:55]}  d5 {[%clk 0:02:58]} 4. Nf3 {[%clk 0:02:54]}  Be7 {[%clk 0:02:57]} 5. Bf4 {[%clk 0:02:54]}  O-O {[%clk 0:02:56]} 6. e3 {[%clk 0:02:54]}  c6 {[%clk 0:02:56]} 7. a3 {[%clk 0:02:51]}  Nbd7 {[%clk 0:02:56]} 8. h3 {[%clk 0:02:49]}  b6 {[%clk 0:02:57]} 9. Bd3 {[%clk 0:02:48]}  Bb7 {[%clk 0:02:57]} 10. cxd5 {[%clk 0:02:45]}  exd5 {[%clk 0:02:57]} 11. O-O {[%clk 0:02:43]}  Re8 {[%clk 0:02:57]} 12. Rc1 {[%clk 0:02:42]}  Nf8 {[%clk 0:02:56]} 13. Ne5 {[%clk 0:02:38]}  Bd6 {[%clk 0:02:52]} 14. Bh2 {[%clk 0:02:35]}  Rc8 {[%clk 0:02:45]} 15. f4 {[%clk 0:02:34]}  c5 {[%clk 0:02:38]} 16. Ne2 {[%clk 0:02:26]}  a6 {[%clk 0:02:36]} 17. Bf5 {[%clk 0:02:25]}  Rc7 {[%clk 0:02:34]} 18. g4 {[%clk 0:02:21]}  N6d7 {[%clk 0:02:34]} 19. Bb1 {[%clk 0:02:12]}  f6 {[%clk 0:02:33]} 20. Nxd7 {[%clk 0:02:09]}  Rxd7 {[%clk 0:02:34]} 21. Rc3 {[%clk 0:02:02]}  Rde7 {[%clk 0:02:33]} 22. Qd2 {[%clk 0:01:56]}  Ne6 {[%clk 0:02:25]} 23. Ng3 {[%clk 0:01:52]}  cxd4 {[%clk 0:02:23]} 24. exd4 {[%clk 0:01:50]}  Nxf4 {[%clk 0:02:16]} 25. Rxf4 {[%clk 0:00:40]}  Bxf4 {[%clk 0:02:17]} 26. Qxf4 {[%clk 0:00:36]}  Re1+ {[%clk 0:02:18]} 27. Kf2 {[%clk 0:00:35]}  Rxb1 {[%clk 0:02:15]} 28. Rc2 {[%clk 0:00:34]}  Rbe1 {[%clk 0:02:08]} 29. Nf5 {[%clk 0:00:30]}  R1e4 {[%clk 0:01:58]} 30. Qf3 {[%clk 0:00:29]}  Qd7 {[%clk 0:01:56]} 31. Nd6 {[%clk 0:00:28]}  Bc6 {[%clk 0:01:53]} 32. Nxe8 {[%clk 0:00:25]}  Qxe8 {[%clk 0:01:51]} 33. Re2 {[%clk 0:00:23]}  Qe6 {[%clk 0:01:42]} 34. Rxe4 {[%clk 0:00:23]}  dxe4 {[%clk 0:01:43]} 35. Qf4 {[%clk 0:00:20]}  Qd5 {[%clk 0:01:36]} 36. Qd6 {[%clk 0:00:16]}  Qc4 {[%clk 0:01:29]} 37. g5 {[%clk 0:00:11]}  Qc2+ {[%clk 0:01:10]} 38. Kg1 {[%clk 0:00:08]}  Qd1+ {[%clk 0:01:01]} 39. Kf2 {[%clk 0:00:07]}  Qf3+ {[%clk 0:00:55]} 40. Kg1 {[%clk 0:00:04]}  e3 {[%clk 0:00:43]} 41. Qe6+ {[%clk 0:00:04]}  Kf8 {[%clk 0:00:43]} 42. Bd6# {[%clk 0:00:02]} 1-0


[Site "https://www.chess.com"]

[Event "Titled Tuesday Blitz May 16 Early 2023"]
[White "Halkias, Stelios"]
[Black "Lopez Del Alamo, Antonio"]
[WhiteFideId "4201809"]
[BlackFideId "2227339"]
[WhiteElo "2451"]
[BlackElo "2175"]
[Result "1-0"]
[Round "01"]
[TimeControl "180+2"]
[Date "2023.05.16"]
[WhiteClock "0:01:32"]
[BlackClock "0:01:32"]

1. Nf3 {[%clk 0:02:58]}  g6 {[%clk 0:02:57]} 2. c4 {[%clk 0:02:57]}  Bg7 {[%clk 0:02:56]} 3. e4 {[%clk 0:02:55]}  d6 {[%clk 0:02:53]} 4. d4 {[%clk 0:02:55]}  Nf6 {[%clk 0:02:37]} 5. Nc3 {[%clk 0:02:54]}  O-O {[%clk 0:02:36]} 6. Be2 {[%clk 0:02:54]}  e5 {[%clk 0:02:35]} 7. Be3 {[%clk 0:02:54]}  Ng4 {[%clk 0:02:34]} 8. Bg5 {[%clk 0:02:54]}  Qe8 {[%clk 0:02:33]} 9. h3 {[%clk 0:02:28]}  Nf6 {[%clk 0:02:29]} 10. dxe5 {[%clk 0:02:21]}  dxe5 {[%clk 0:02:28]} 11. O-O {[%clk 0:02:22]}  Na6 {[%clk 0:02:22]} 12. Qc2 {[%clk 0:02:20]}  h6 {[%clk 0:02:18]} 13. Be3 {[%clk 0:02:19]}  Qe7 {[%clk 0:02:17]} 14. Nd5 {[%clk 0:02:18]}  Nxd5 {[%clk 0:02:13]} 15. cxd5 {[%clk 0:02:18]}  f5 {[%clk 0:01:58]} 16. Bxa6 {[%clk 0:02:17]}  bxa6 {[%clk 0:01:58]} 17. Bc5 {[%clk 0:02:17]}  Qf7 {[%clk 0:01:57]} 18. Bxf8 {[%clk 0:02:15]}  Bxf8 {[%clk 0:01:58]} 19. Nxe5 {[%clk 0:02:13]}  Qg7 {[%clk 0:01:56]} 20. f4 {[%clk 0:02:06]}  Bd6 {[%clk 0:01:51]} 21. Kh1 {[%clk 0:02:00]}  fxe4 {[%clk 0:01:49]} 22. Qxe4 {[%clk 0:01:57]}  Bf5 {[%clk 0:01:49]} 23. Qe2 {[%clk 0:01:56]}  g5 {[%clk 0:01:48]} 24. fxg5 {[%clk 0:01:54]}  Rf8 {[%clk 0:01:43]} 25. Nc4 {[%clk 0:01:50]}  Bg3 {[%clk 0:01:36]} 26. Ne3 {[%clk 0:01:32]}  Bd7 {[%clk 0:01:32]} 1-0


[Site "https://www.chess.com"]

[Event "Titled Tuesday Blitz May 16 Early 2023"]
[White "Dimitrov, Atanas"]
[Black "Sargissyan, Sargis"]
[WhiteFideId "2901315"]
[BlackFideId "13303210"]
[WhiteElo "2700"]
[BlackElo "2109"]
[Result "1-0"]
[Round "01"]
[TimeControl "180+2"]
[Date "2023.05.16"]
[WhiteClock "0:00:06"]
[BlackClock "0:00:00"]

1. Nf3 {[%clk 0:02:50]}  Nf6 {[%clk 0:02:58]} 2. g3 {[%clk 0:02:49]}  g6 {[%clk 0:02:58]} 3. Bg2 {[%clk 0:02:49]}  Bg7 {[%clk 0:02:59]} 4. O-O {[%clk 0:02:50]}  O-O {[%clk 0:03:00]} 5. c4 {[%clk 0:02:50]}  c6 {[%clk 0:02:51]} 6. b3 {[%clk 0:02:44]}  d5 {[%clk 0:02:51]} 7. Bb2 {[%clk 0:02:44]}  a5 {[%clk 0:02:41]} 8. d3 {[%clk 0:02:43]}  a4 {[%clk 0:02:40]} 9. Qc2 {[%clk 0:02:28]}  axb3 {[%clk 0:02:39]} 10. axb3 {[%clk 0:02:27]}  Rxa1 {[%clk 0:02:39]} 11. Bxa1 {[%clk 0:02:28]}  Na6 {[%clk 0:02:36]} 12. Nbd2 {[%clk 0:02:26]}  Nb4 {[%clk 0:02:24]} 13. Qb1 {[%clk 0:02:25]}  c5 {[%clk 0:02:21]} 14. Bc3 {[%clk 0:02:22]}  Nc6 {[%clk 0:02:17]} 15. cxd5 {[%clk 0:02:20]}  Nxd5 {[%clk 0:02:13]} 16. Bxg7 {[%clk 0:02:21]}  Kxg7 {[%clk 0:02:14]} 17. Qc2 {[%clk 0:02:21]}  b6 {[%clk 0:02:03]} 18. Ra1 {[%clk 0:02:21]}  e5 {[%clk 0:01:49]} 19. Nc4 {[%clk 0:02:13]}  f6 {[%clk 0:01:45]} 20. Qc1 {[%clk 0:02:03]}  Bb7 {[%clk 0:01:31]} 21. h4 {[%clk 0:01:55]}  h5 {[%clk 0:01:24]} 22. Qa3 {[%clk 0:01:17]}  Ndb4 {[%clk 0:01:17]} 23. Qb2 {[%clk 0:01:15]}  Qc7 {[%clk 0:01:06]} 24. Ra3 {[%clk 0:01:14]}  Ra8 {[%clk 0:01:00]} 25. Rxa8 {[%clk 0:01:09]}  Bxa8 {[%clk 0:01:00]} 26. Qa1 {[%clk 0:01:07]}  Bb7 {[%clk 0:00:52]} 27. Qb1 {[%clk 0:01:04]}  Nd4 {[%clk 0:00:49]} 28. Nxd4 {[%clk 0:01:03]}  exd4 {[%clk 0:00:49]} 29. Bxb7 {[%clk 0:01:01]}  Qxb7 {[%clk 0:00:49]} 30. Qa1 {[%clk 0:01:00]}  b5 {[%clk 0:00:38]} 31. Nd6 {[%clk 0:01:00]}  Qd7 {[%clk 0:00:38]} 32. Ne4 {[%clk 0:00:58]}  Qe7 {[%clk 0:00:26]} 33. Kf1 {[%clk 0:00:41]}  Nd5 {[%clk 0:00:23]} 34. Qa5 {[%clk 0:00:38]}  f5 {[%clk 0:00:19]} 35. Ng5 {[%clk 0:00:28]}  Nc3 {[%clk 0:00:17]} 36. e3 {[%clk 0:00:29]}  b4 {[%clk 0:00:16]} 37. exd4 {[%clk 0:00:21]}  cxd4 {[%clk 0:00:16]} 38. Kg2 {[%clk 0:00:18]}  Qb7+ {[%clk 0:00:14]} 39. Kh2 {[%clk 0:00:17]}  Qe7 {[%clk 0:00:13]} 40. Nf3 {[%clk 0:00:15]}  Nd1 {[%clk 0:00:11]} 41. Qa2 {[%clk 0:00:09]}  Nc3 {[%clk 0:00:05]} 42. Qd2 {[%clk 0:00:09]}  Qd6 {[%clk 0:00:05]} 43. Qg5 {[%clk 0:00:09]}  Nd1 {[%clk 0:00:04]} 44. Qd2 {[%clk 0:00:09]}  Nc3 {[%clk 0:00:03]} 45. Qe1 {[%clk 0:00:09]}  Qd5 {[%clk 0:00:03]} 46. Ng5 {[%clk 0:00:07]}  Qd7 {[%clk 0:00:02]} 47. Qe5+ {[%clk 0:00:07]}  Kg8 {[%clk 0:00:02]} 48. Ne6 {[%clk 0:00:05]}  Kf7 {[%clk 0:00:02]} 49. Nxd4 {[%clk 0:00:05]}  Nd5 {[%clk 0:00:01]} 50. Nf3 {[%clk 0:00:05]}  Nf6 {[%clk 0:00:01]} 51. Ng5+ {[%clk 0:00:05]}  Kg7 {[%clk 0:00:02]} 52. Ne6+ {[%clk 0:00:06]}  Kf7 {[%clk 0:00:02]} 53. Ng5+ {[%clk 0:00:05]}  Kg7 {[%clk 0:00:00]} 54. d4 {[%clk 0:00:06]} 1-0


[Site "https://www.chess.com"]

[Event "Titled Tuesday Blitz May 16 Early 2023"]
[White "Mohammed, Zozek Salah Mohammed"]
[Black "Rastbod, Ali"]
[WhiteFideId "4803361"]
[BlackFideId "12567477"]
[WhiteElo "2211"]
[BlackElo "2274"]
[Result "0-1"]
[Round "01"]
[TimeControl "180+2"]
[Date "2023.05.16"]
[WhiteClock "0:00:03"]
[BlackClock "0:00:32"]

1. d4 {[%clk 0:03:00]}  d5 {[%clk 0:03:00]} 2. Nf3 {[%clk 0:02:57]}  Nf6 {[%clk 0:02:59]} 3. g3 {[%clk 0:02:58]}  c6 {[%clk 0:02:57]} 4. Bg2 {[%clk 0:02:57]}  Bf5 {[%clk 0:02:57]} 5. O-O {[%clk 0:02:56]}  e6 {[%clk 0:02:58]} 6. c4 {[%clk 0:02:57]}  h6 {[%clk 0:02:58]} 7. Nc3 {[%clk 0:02:56]}  Be7 {[%clk 0:02:58]} 8. Nd2 {[%clk 0:02:57]}  O-O {[%clk 0:02:57]} 9. e4 {[%clk 0:02:58]}  dxe4 {[%clk 0:02:55]} 10. Ndxe4 {[%clk 0:02:58]}  Nbd7 {[%clk 0:02:56]} 11. b3 {[%clk 0:02:50]}  Qb6 {[%clk 0:02:52]} 12. Bb2 {[%clk 0:02:46]}  Rfd8 {[%clk 0:02:52]} 13. Qe2 {[%clk 0:02:38]}  Nxe4 {[%clk 0:02:44]} 14. Nxe4 {[%clk 0:02:37]}  Nf6 {[%clk 0:02:44]} 15. Rfd1 {[%clk 0:02:26]}  Nxe4 {[%clk 0:02:41]} 16. Bxe4 {[%clk 0:02:24]}  Bxe4 {[%clk 0:02:42]} 17. Qxe4 {[%clk 0:02:25]}  Bf6 {[%clk 0:02:43]} 18. Rd2 {[%clk 0:02:20]}  Rd7 {[%clk 0:02:40]} 19. Rad1 {[%clk 0:02:19]}  Rad8 {[%clk 0:02:40]} 20. Kg2 {[%clk 0:02:12]}  Qa5 {[%clk 0:02:34]} 21. a3 {[%clk 0:02:10]}  c5 {[%clk 0:02:24]} 22. h4 {[%clk 0:00:22]}  h5 {[%clk 0:02:11]} 23. Qe3 {[%clk 0:00:19]}  cxd4 {[%clk 0:02:07]} 24. Bxd4 {[%clk 0:00:19]}  Bxd4 {[%clk 0:01:45]} 25. Rxd4 {[%clk 0:00:19]}  Rxd4 {[%clk 0:01:45]} 26. Rxd4 {[%clk 0:00:19]}  Rxd4 {[%clk 0:01:46]} 27. Qxd4 {[%clk 0:00:20]}  Qxa3 {[%clk 0:01:46]} 28. Qd8+ {[%clk 0:00:20]}  Kh7 {[%clk 0:01:46]} 29. Qd7 {[%clk 0:00:19]}  Qxb3 {[%clk 0:01:28]} 30. Qxf7 {[%clk 0:00:18]}  Kh6 {[%clk 0:01:15]} 31. Qxe6+ {[%clk 0:00:17]}  g6 {[%clk 0:01:15]} 32. Qg8 {[%clk 0:00:11]}  Qc3 {[%clk 0:01:12]} 33. Qf8+ {[%clk 0:00:09]}  Qg7 {[%clk 0:01:12]} 34. Qf4+ {[%clk 0:00:09]}  Kh7 {[%clk 0:01:13]} 35. c5 {[%clk 0:00:08]}  Qd7 {[%clk 0:01:11]} 36. Qd6 {[%clk 0:00:07]}  Qc6+ {[%clk 0:01:11]} 37. Kh2 {[%clk 0:00:06]}  a6 {[%clk 0:01:02]} 38. Qe7+ {[%clk 0:00:06]}  Kg8 {[%clk 0:01:03]} 39. Qd8+ {[%clk 0:00:06]}  Kf7 {[%clk 0:01:04]} 40. Qd4 {[%clk 0:00:04]}  Ke6 {[%clk 0:00:59]} 41. f4 {[%clk 0:00:03]}  Qd5 {[%clk 0:00:58]} 42. Qe3+ {[%clk 0:00:04]}  Kd7 {[%clk 0:00:58]} 43. Qc3 {[%clk 0:00:03]}  Qe6 {[%clk 0:00:49]} 44. Qd4+ {[%clk 0:00:02]}  Kc6 {[%clk 0:00:49]} 45. Qb4 {[%clk 0:00:02]}  Qe2+ {[%clk 0:00:40]} 46. Kh3 {[%clk 0:00:02]}  Qf1+ {[%clk 0:00:40]} 47. Kh2 {[%clk 0:00:02]}  Qf2+ {[%clk 0:00:40]} 48. Kh3 {[%clk 0:00:03]}  Qxc5 {[%clk 0:00:41]} 49. Qe4+ {[%clk 0:00:02]}  Qd5 {[%clk 0:00:39]} 50. Qxg6+ {[%clk 0:00:03]}  Kc5 {[%clk 0:00:37]} 51. Qc2+ {[%clk 0:00:02]}  Kb4 {[%clk 0:00:37]} 52. Qb2+ {[%clk 0:00:02]}  Ka4 {[%clk 0:00:38]} 53. Qa1+ {[%clk 0:00:02]}  Kb5 {[%clk 0:00:39]} 54. Qb2+ {[%clk 0:00:03]}  Kc6 {[%clk 0:00:39]} 55. Qc3+ {[%clk 0:00:03]}  Kd7 {[%clk 0:00:39]} 56. Qg7+ {[%clk 0:00:03]}  Kc8 {[%clk 0:00:40]} 57. Qc3+ {[%clk 0:00:03]}  Kb8 {[%clk 0:00:40]} 58. Kh2 {[%clk 0:00:04]}  b5 {[%clk 0:00:38]} 59. Qh8+ {[%clk 0:00:03]}  Ka7 {[%clk 0:00:38]} 60. Qh7+ {[%clk 0:00:03]}  Kb6 {[%clk 0:00:38]} 61. f5 {[%clk 0:00:04]}  Qd2+ {[%clk 0:00:37]} 62. Kh3 {[%clk 0:00:04]}  Qe2 {[%clk 0:00:35]} 63. Qg6+ {[%clk 0:00:03]}  Ka5 {[%clk 0:00:35]} 64. f6 {[%clk 0:00:04]}  Qf3 {[%clk 0:00:32]} 65. f7 {[%clk 0:00:03]}  Qh1# {[%clk 0:00:32]} 0-1


[Site "https://www.chess.com"]

[Event "Titled Tuesday Blitz May 16 Early 2023"]
[White "Itkis, Boris"]
[Black "Hua, Lefong"]
[WhiteFideId "1209167"]
[BlackFideId "2602253"]
[WhiteElo "2216"]
[BlackElo "2690"]
[Result "0-1"]
[Round "01"]
[TimeControl "180+2"]
[Date "2023.05.16"]
[WhiteClock "0:00:39"]
[BlackClock "0:01:31"]

1. c4 {[%clk 0:02:59]}  Nf6 {[%clk 0:02:57]} 2. Nf3 {[%clk 0:02:59]}  g6 {[%clk 0:02:56]} 3. b4 {[%clk 0:03:00]}  Bg7 {[%clk 0:02:57]} 4. Bb2 {[%clk 0:03:00]}  O-O {[%clk 0:02:57]} 5. g3 {[%clk 0:03:01]}  a5 {[%clk 0:02:56]} 6. b5 {[%clk 0:03:01]}  d6 {[%clk 0:02:54]} 7. Bg2 {[%clk 0:03:01]}  e5 {[%clk 0:02:55]} 8. d3 {[%clk 0:03:01]}  Nbd7 {[%clk 0:02:55]} 9. O-O {[%clk 0:03:01]}  Nc5 {[%clk 0:02:54]} 10. Nc3 {[%clk 0:03:01]}  e4 {[%clk 0:02:39]} 11. dxe4 {[%clk 0:03:01]}  Nfxe4 {[%clk 0:02:36]} 12. Qc1 {[%clk 0:02:58]}  Nf6 {[%clk 0:02:26]} 13. Nd4 {[%clk 0:02:50]}  Re8 {[%clk 0:02:22]} 14. Nb3 {[%clk 0:02:44]}  Nfd7 {[%clk 0:02:07]} 15. Re1 {[%clk 0:02:13]}  a4 {[%clk 0:02:02]} 16. Nxc5 {[%clk 0:02:06]}  Nxc5 {[%clk 0:02:03]} 17. Nd5 {[%clk 0:01:35]}  Be6 {[%clk 0:01:56]} 18. Bxg7 {[%clk 0:01:34]}  Kxg7 {[%clk 0:01:57]} 19. Qc3+ {[%clk 0:01:29]}  f6 {[%clk 0:01:57]} 20. e3 {[%clk 0:01:17]}  Bxd5 {[%clk 0:01:51]} 21. Bxd5 {[%clk 0:01:17]}  Qe7 {[%clk 0:01:51]} 22. Rad1 {[%clk 0:01:10]}  Qe5 {[%clk 0:01:50]} 23. Qxe5 {[%clk 0:01:08]}  Rxe5 {[%clk 0:01:47]} 24. f4 {[%clk 0:01:03]}  Re7 {[%clk 0:01:46]} 25. Kf2 {[%clk 0:01:03]}  f5 {[%clk 0:01:45]} 26. Kf3 {[%clk 0:00:57]}  Rae8 {[%clk 0:01:45]} 27. h3 {[%clk 0:00:55]}  h6 {[%clk 0:01:39]} 28. g4 {[%clk 0:00:53]}  Kf6 {[%clk 0:01:39]} 29. Rc1 {[%clk 0:00:39]}  Nd3 {[%clk 0:01:31]} 0-1


[Site "https://www.chess.com"]

[Event "Titled Tuesday Blitz May 16 Early 2023"]
[White "Krysa, Leandro"]
[Black "Koutsin, Sergey"]
[WhiteFideId "116807"]
[BlackFideId "14101483"]
[WhiteElo "2489"]
[BlackElo "2381"]
[Result "1-0"]
[Round "01"]
[TimeControl "180+2"]
[Date "2023.05.16"]
[WhiteClock "0:00:15"]
[BlackClock "0:01:23"]

1. e4 {[%clk 0:02:51]}  e6 {[%clk 0:03:00]} 2. d4 {[%clk 0:02:51]}  d5 {[%clk 0:03:00]} 3. Nc3 {[%clk 0:02:51]}  Nf6 {[%clk 0:02:59]} 4. e5 {[%clk 0:02:50]}  Nfd7 {[%clk 0:03:00]} 5. Nce2 {[%clk 0:02:51]}  c5 {[%clk 0:03:00]} 6. c3 {[%clk 0:02:51]}  Be7 {[%clk 0:03:00]} 7. Nf3 {[%clk 0:02:46]}  O-O {[%clk 0:03:00]} 8. g3 {[%clk 0:02:44]}  Nc6 {[%clk 0:02:59]} 9. Bg2 {[%clk 0:02:43]}  f6 {[%clk 0:02:58]} 10. Nf4 {[%clk 0:02:31]}  Nb6 {[%clk 0:02:58]} 11. Qe2 {[%clk 0:02:21]}  fxe5 {[%clk 0:02:56]} 12. dxe5 {[%clk 0:02:16]}  Qc7 {[%clk 0:02:41]} 13. h4 {[%clk 0:02:09]}  Bd7 {[%clk 0:02:38]} 14. O-O {[%clk 0:02:08]}  Rae8 {[%clk 0:02:38]} 15. Bh3 {[%clk 0:02:04]}  Bd8 {[%clk 0:02:38]} 16. b3 {[%clk 0:01:59]}  Bc8 {[%clk 0:02:38]} 17. Bd2 {[%clk 0:01:55]}  Kh8 {[%clk 0:02:38]} 18. Rfe1 {[%clk 0:01:54]}  Qe7 {[%clk 0:02:38]} 19. Ng5 {[%clk 0:01:50]}  Qd7 {[%clk 0:02:36]} 20. Qh5 {[%clk 0:01:45]}  Bxg5 {[%clk 0:02:35]} 21. Ng6+ {[%clk 0:01:40]}  Kg8 {[%clk 0:02:35]} 22. Nxf8 {[%clk 0:01:41]}  Rxf8 {[%clk 0:02:32]} 23. Bxg5 {[%clk 0:01:36]}  Qf7 {[%clk 0:02:19]} 24. Qxf7+ {[%clk 0:01:34]}  Rxf7 {[%clk 0:02:20]} 25. Rad1 {[%clk 0:01:31]}  h6 {[%clk 0:02:15]} 26. Bf4 {[%clk 0:01:28]}  Bd7 {[%clk 0:02:14]} 27. h5 {[%clk 0:01:24]}  Nc8 {[%clk 0:02:11]} 28. Bg4 {[%clk 0:01:11]}  N8e7 {[%clk 0:02:11]} 29. Kg2 {[%clk 0:01:08]}  Nf5 {[%clk 0:02:10]} 30. Be2 {[%clk 0:00:54]}  Be8 {[%clk 0:02:10]} 31. Bb5 {[%clk 0:00:51]}  a6 {[%clk 0:02:09]} 32. Be2 {[%clk 0:00:50]}  Rf8 {[%clk 0:02:05]} 33. Bg4 {[%clk 0:00:49]}  Nce7 {[%clk 0:02:02]} 34. Rh1 {[%clk 0:00:40]}  Bc6 {[%clk 0:02:02]} 35. Bf3 {[%clk 0:00:40]}  Nc8 {[%clk 0:01:58]} 36. c4 {[%clk 0:00:39]}  Nfe7 {[%clk 0:01:57]} 37. cxd5 {[%clk 0:00:37]}  Nxd5 {[%clk 0:01:57]} 38. Bd2 {[%clk 0:00:33]}  Ne3+ {[%clk 0:01:55]} 39. Bxe3 {[%clk 0:00:30]}  Bxf3+ {[%clk 0:01:56]} 40. Kh3 {[%clk 0:00:29]}  Bxh1 {[%clk 0:01:55]} 41. Rxh1 {[%clk 0:00:30]}  b6 {[%clk 0:01:54]} 42. Rd1 {[%clk 0:00:29]}  Ne7 {[%clk 0:01:54]} 43. Rd6 {[%clk 0:00:27]}  Nd5 {[%clk 0:01:54]} 44. Rxe6 {[%clk 0:00:25]}  Rd8 {[%clk 0:01:49]} 45. Kg4 {[%clk 0:00:23]}  Kf7 {[%clk 0:01:49]} 46. Rc6 {[%clk 0:00:21]}  Nxe3+ {[%clk 0:01:42]} 47. fxe3 {[%clk 0:00:21]}  Rd2 {[%clk 0:01:43]} 48. Rxb6 {[%clk 0:00:18]}  Rxa2 {[%clk 0:01:43]} 49. e6+ {[%clk 0:00:19]}  Ke7 {[%clk 0:01:42]} 50. Kf5 {[%clk 0:00:19]}  Re2 {[%clk 0:01:41]} 51. e4 {[%clk 0:00:18]}  Rf2+ {[%clk 0:01:37]} 52. Ke5 {[%clk 0:00:18]}  Rd2 {[%clk 0:01:28]} 53. Rxa6 {[%clk 0:00:17]}  Kf8 {[%clk 0:01:29]} 54. Ra8+ {[%clk 0:00:16]}  Ke7 {[%clk 0:01:29]} 55. Rg8 {[%clk 0:00:17]}  Rd3 {[%clk 0:01:27]} 56. Rxg7+ {[%clk 0:00:17]}  Kf8 {[%clk 0:01:27]} 57. e7+ {[%clk 0:00:14]}  Ke8 {[%clk 0:01:23]} 58. Ke6 {[%clk 0:00:15]} 1-0


[Site "https://www.chess.com"]

[Event "Titled Tuesday Blitz May 16 Early 2023"]
[White "Seemann, Jakub"]
[Black "Goswami, Vedant"]
[WhiteFideId "21874697"]
[BlackFideId "5003725"]
[WhiteElo "2364"]
[BlackElo "2011"]
[Result "1-0"]
[Round "01"]
[TimeControl "180+2"]
[Date "2023.05.16"]
[WhiteClock "0:00:02"]
[BlackClock "0:00:00"]

1. c4 {[%clk 0:02:58]}  g6 {[%clk 0:02:57]} 2. Nc3 {[%clk 0:02:57]}  d6 {[%clk 0:02:54]} 3. g3 {[%clk 0:02:57]}  Bg7 {[%clk 0:02:52]} 4. Bg2 {[%clk 0:02:57]}  c6 {[%clk 0:02:48]} 5. e3 {[%clk 0:02:55]}  Bd7 {[%clk 0:02:48]} 6. Nge2 {[%clk 0:02:54]}  Qc8 {[%clk 0:02:48]} 7. O-O {[%clk 0:02:42]}  Bh3 {[%clk 0:02:47]} 8. d4 {[%clk 0:02:40]}  h5 {[%clk 0:02:46]} 9. Bxh3 {[%clk 0:02:37]}  Qxh3 {[%clk 0:02:44]} 10. Nf4 {[%clk 0:02:38]}  Qd7 {[%clk 0:02:41]} 11. h4 {[%clk 0:02:32]}  Nh6 {[%clk 0:02:37]} 12. Kg2 {[%clk 0:02:16]}  e5 {[%clk 0:02:32]} 13. dxe5 {[%clk 0:02:13]}  dxe5 {[%clk 0:02:32]} 14. Qxd7+ {[%clk 0:02:10]}  Nxd7 {[%clk 0:02:31]} 15. Nfe2 {[%clk 0:01:59]}  Nf5 {[%clk 0:02:21]} 16. b3 {[%clk 0:01:55]}  Nc5 {[%clk 0:02:01]} 17. Ba3 {[%clk 0:01:53]}  Bf8 {[%clk 0:01:42]} 18. Rfd1 {[%clk 0:01:33]}  Rd8 {[%clk 0:01:24]} 19. Rxd8+ {[%clk 0:01:32]}  Kxd8 {[%clk 0:01:23]} 20. Rd1+ {[%clk 0:01:32]}  Kc7 {[%clk 0:01:20]} 21. e4 {[%clk 0:01:17]}  Nxe4 {[%clk 0:01:01]} 22. Nxe4 {[%clk 0:01:17]}  Bxa3 {[%clk 0:00:58]} 23. Ng5 {[%clk 0:01:17]}  Rf8 {[%clk 0:00:53]} 24. Nc3 {[%clk 0:01:15]}  Be7 {[%clk 0:00:50]} 25. Nce4 {[%clk 0:01:15]}  Bxg5 {[%clk 0:00:47]} 26. hxg5 {[%clk 0:01:13]}  Rd8 {[%clk 0:00:41]} 27. Re1 {[%clk 0:01:02]}  a5 {[%clk 0:00:35]} 28. Nf6 {[%clk 0:00:53]}  Rd2 {[%clk 0:00:33]} 29. Rxe5 {[%clk 0:00:52]}  Rxa2 {[%clk 0:00:32]} 30. Kg1 {[%clk 0:00:13]}  Kd6 {[%clk 0:00:29]} 31. Re8 {[%clk 0:00:12]}  Ra3 {[%clk 0:00:27]} 32. Ne4+ {[%clk 0:00:12]}  Kd7 {[%clk 0:00:24]} 33. Nf6+ {[%clk 0:00:11]}  Kc7 {[%clk 0:00:23]} 34. Rf8 {[%clk 0:00:11]}  Rxb3 {[%clk 0:00:23]} 35. Rxf7+ {[%clk 0:00:11]}  Kd6 {[%clk 0:00:20]} 36. Ne4+ {[%clk 0:00:11]}  Ke6 {[%clk 0:00:16]} 37. Rf6+ {[%clk 0:00:07]}  Ke5 {[%clk 0:00:15]} 38. Nc5 {[%clk 0:00:07]}  Rb1+ {[%clk 0:00:13]} 39. Kg2 {[%clk 0:00:07]}  b5 {[%clk 0:00:12]} 40. Nd7+ {[%clk 0:00:04]}  Ke4 {[%clk 0:00:10]} 41. c5 {[%clk 0:00:04]}  a4 {[%clk 0:00:09]} 42. Rxc6 {[%clk 0:00:03]}  a3 {[%clk 0:00:09]} 43. Ra6 {[%clk 0:00:03]}  b4 {[%clk 0:00:09]} 44. c6 {[%clk 0:00:03]}  Rc1 {[%clk 0:00:09]} 45. Ra4 {[%clk 0:00:02]}  Rxc6 {[%clk 0:00:07]} 46. Rxb4+ {[%clk 0:00:03]}  Kd5 {[%clk 0:00:06]} 47. Nf6+ {[%clk 0:00:02]}  Kc5 {[%clk 0:00:05]} 48. Ra4 {[%clk 0:00:03]}  Rd6 {[%clk 0:00:02]} 49. Ne4+ {[%clk 0:00:02]}  Kd5 {[%clk 0:00:00]} 50. Nxd6 {[%clk 0:00:02]} 1-0


[Site "https://www.chess.com"]